[Event "3rd Perez Open 2024"]
[Site "Santa Fe"]
[Date "2024.02.22"]
[Round "1.1"]
[White "Bona, Luca Jesus"]
[Black "Felgaer, Ruben"]
[Result "0-1"]
[ECO "D02"]
[WhiteElo "1640"]
[BlackElo "2572"]
[Annotator "TA"]
[PlyCount "46"]
[EventDate "2024.02.18"]
[EventType "swiss"]
[EventCountry "ARG"]
[SourceTitle "playchess.com"]
[Source "ChessBase"]
[SourceQuality "1"]
[TimeControl "5400+30"]

{[%evp 11,46,-5,0,-6,-2,-33,2,-17,0,0,0,0,0,0,0,0,0,-12,-12,-142,-133,-232,-216,-225,-224,-327,-320,-442,-452,-438,-435,-629,-623,-640,-631,-1183,-638]} 1. d4 {[%emt 0:00:06]} d5 {[%emt 0:00:15]} 2. Bf4 {[%emt 0:00:09]} Nf6 {[%emt 0:00:09]} 3. e3 {[%emt 0:00:08]} e6 {[%emt 0:00:15]} 4. Nf3 {[%emt 0:00:12]} Bd6 {[%emt 0:00:07]} 5. Bg3 {[%emt 0:01:25]} O-O {[%emt 0:00:10]} 6. Bd3 {[%emt 0:00:07]} c5 {[%emt 0:00:10]} 7. c3 {[%emt 0:00:07]} Qc7 {[%emt 0:00:12]} 8. dxc5 {[%emt 0:00:18]} Qxc5 {[%emt 0:00:23]} 9. Nbd2 {[%emt 0:00:23] The position is equal.} Nbd7 {[%emt 0:03:49]} 10. e4 {[%emt 0:04:25]} Bxg3 {[%emt 0:01:57]} 11. hxg3 {[%emt 0:00:11] aiming for e5.} dxe4 {[%emt 0:00:03]} 12. Nxe4 {[%emt 0:00:18]} Nxe4 {[%emt 0:00:06]} 13. Bxe4 {[%emt 0:00:14]} Nf6 {[%emt 0:00:05]} 14. Bc2 {[%emt 0:04:10]} e5 {[%emt 0:08:54]} 15. Ng5 {[%emt 0:10:49] [#]} (15. O-O $11 {remains equal.}) 15... e4 $1 $40 {[%emt 0:10:20][%mdl 128] Black is out for blood.} 16. Nxe4 {[%emt 0:11:42]} (16. Qd2 $17) 16... Nxe4 $19 {[%emt 0:05:20]} 17. Bxe4 {[%emt 0:00:06]} Re8 {[%emt 0:00:14]} 18. Qe2 {[%emt 0:00:25]} (18. Kf1 {only move.} Rxe4 19. Qd8+ Qf8 20. Qxf8+ Kxf8 21. f3) 18... f5 {[%emt 0:08:43]} 19. Qh5 {[%emt 0:07:37]} Rxe4+ {[%emt 0:00:18] Black is clearly winning.} 20. Kf1 {[%emt 0:00:08]} h6 {[%emt 0:00:47]} 21. Qg6 {[%emt 0:01:18]} (21. a4 $142) 21... Re6 {[%emt 0:00:55]} 22. Qh5 {[%emt 0:00:02]} Bd7 {[%emt 0:00:13] White must now prevent ...Rae8.} 23. Rd1 {[%emt 0:00:20] [#]} Rae8 $1 {[%emt 0:00:34] Weighted Error Value: White=1.07/Black=0.01 (flawless) .  Mistake:       	White=4     	---        Inaccurate:     	White=2     	Black=1      OK:         	White=3     	Black=7      Best:        	White=1     	Black=2      Strong:       	---       	Black=1} 0-1

[Event "3rd Perez Open 2024"]
[Site "Santa Fe"]
[Date "2024.02.22"]
[Round "1.2"]
[White "Flores, Diego"]
[Black "Codino, Juan Martin"]
[Result "1-0"]
[ECO "E61"]
[WhiteElo "2526"]
[BlackElo "1599"]
[Annotator "TA"]
[PlyCount "59"]
[EventDate "2024.02.18"]
[EventType "swiss"]
[EventCountry "ARG"]
[SourceTitle "playchess.com"]
[Source "ChessBase"]
[SourceQuality "1"]
[TimeControl "5400+30"]

{[%evp 18,59,22,22,15,19,20,15,32,25,47,37,86,79,107,102,108,71,168,150,144,141,240,247,460,488,475,453,567,534,914,902,1241,1222,1210,1187,1732,1167,2414,2324,2414,2431,2352,2279]} 1. Nf3 {[%emt 0:00:25]} Nf6 {[%emt 0:00:28]} 2. c4 {[%emt 0:00:08]} g6 {[%emt 0:00:14]} 3. Nc3 {[%emt 0:00:06]} Bg7 {[%emt 0:00:27]} 4. d4 {[%emt 0:00:07]} O-O {[%emt 0:00:17]} 5. Bg5 {[%emt 0:00:07]} d6 {[%emt 0:01:06]} 6. e3 {[%emt 0:00:07]} Nbd7 {[%emt 0:02:11]} 7. Be2 {[%emt 0:00:10]} c5 {[%emt 0:05:12]} 8. O-O {[%emt 0:00:44]} h6 {[%emt 0:05:50]} 9. Bh4 {[%emt 0:00:14]} g5 {[%emt 0:00:13]} 10. Bg3 {[%emt 0:00:12]} Nh5 {[%emt 0:00:36]} 11. Qc2 {[%emt 0:04:38][%cal Of3g5]} Nxg3 {[%emt 0:02:52]} 12. hxg3 {[%emt 0:00:14]} Qa5 {[%emt 0:01:37] The position is equal.} 13. a3 {[%emt 0:02:26]} Nf6 {[%emt 0:03:27]} 14. b4 {[%emt 0:02:09]} cxb4 {[%emt 0:00:16]} (14... Qc7 $14) 15. axb4 $16 {[%emt 0:00:09]} Qd8 {[%emt 0:00:35]} 16. Nd2 {[%emt 0:06:33] White is much more active. The black rooks are passive.} Bd7 {[%emt 0:05:58]} 17. c5 {[%emt 0:04:54]} d5 {[%emt 0:05:49]} (17... a5 $16) 18. Nf3 {[%emt 0:01:03][%cal Bd2f3,Bf3e5,Be5c6,Bc6a5][%mdl 32]} a6 {[%emt 0:05:05]} 19. Ne5 {[%emt 0:00:16]} Bc6 {[%emt 0:00:57]} (19... e6 $16 20. Rfb1 Be8) 20. Bxa6 $18 {[%emt 0:02:21][%cal Ob4b5] aiming for b5!} Rxa6 $2 {[%emt 0:02:18] [#]} (20... Ng4 {was called for.}) 21. Rxa6 {[%emt 0:03:48] White is clearly winning.} bxa6 {[%emt 0:00:02]} 22. Nxc6 {[%emt 0:00:07]} Qc7 {[%emt 0:01:30]} 23. Qa4 {[%emt 0:01:16]} Ra8 {[%emt 0:01:05]} 24. b5 {[%emt 0:00:28][%cal Bb4b5,Bb5b6,Bb6b7][%mdl 32]} a5 {[%emt 0:07:24]} 25. b6 {[%emt 0:03:48]} Qb7 {[%emt 0:02:52]} 26. Nxa5 {[%emt 0:00:52] Excellent horsemanship.} Qd7 {[%emt 0:02:02]} 27. b7 {[%emt 0:01:05]} Rb8 {[%emt 0:01:14]} 28. Qxd7 {[%emt 0:00:09]} Nxd7 {[%emt 0:00:05]} 29. c6 {[%emt 0:00:09][%cal Bc5c6,Bc6c7][%mdl 32]} Nb6 {[%emt 0:00:47]} 30. c7 {[%emt 0:00:48] Weighted Error Value: White=0.08 (flawless) /Black=0.64.  Mistake:       	---       	Black=4      Inaccurate:     	White=1     	Black=3      OK:         	White=6     	Black=2      Best:        	White=1     	---} 1-0

[Event "3rd Perez Open 2024"]
[Site "Santa Fe"]
[Date "2024.02.22"]
[Round "1.3"]
[White "Lopez Rodriguez, Hector"]
[Black "Acosta, Pablo Ismael"]
[Result "0-1"]
[ECO "E87"]
[WhiteElo "2144"]
[BlackElo "2479"]
[Annotator "TA"]
[PlyCount "48"]
[EventDate "2024.02.18"]
[EventType "swiss"]
[EventCountry "ARG"]
[SourceTitle "playchess.com"]
[Source "ChessBase"]
[SourceQuality "1"]
[TimeControl "5400+30"]

{[%evp 15,48,77,91,-169,-172,-215,-207,-216,-206,-205,-214,-220,-230,-257,-255,-305,-240,-253,-251,-274,-268,-269,-256,-302,-284,-698,-698,-745,-719,-889,-905,-884,-900,-1329,-1296]} 1. d4 {[%emt 0:00:02]} Nf6 {[%emt 0:00:10]} 2. c4 {[%emt 0:00:12]} g6 {[%emt 0:00:13]} 3. Nc3 {[%emt 0:00:16]} Bg7 {[%emt 0:00:06]} 4. e4 {[%emt 0:00:19]} d6 {[%emt 0:00:06]} 5. Be3 {[%emt 0:01:14]} O-O {[%emt 0:00:21]} 6. f3 {[%emt 0:00:34]} Nbd7 {[%emt 0:00:35]} 7. Qd2 {[%emt 0:01:14]} e5 {[%emt 0:00:40]} 8. d5 {[%emt 0:01:18]} a5 {[%emt 0:03:02]} 9. Bh6 $2 {[%emt 0:05:19][%mdl 8192] [#]} (9. g4 $16 {and life is bright.}) 9... Nxe4 $1 $19 {[%emt 0:02:13][%mdl 512]} 10. Nxe4 {[%emt 0:03:18] Black must now prevent h4.} (10. fxe4 Qh4+) 10... Qh4+ {[%emt 0:00:08]} 11. g3 {[%emt 0:00:13] Black is clearly better.} Qxh6 {[%emt 0:00:06]} 12. Qxh6 {[%emt 0:00:10]} Bxh6 {[%emt 0:00:04]} 13. h4 {[%emt 0:00:27]} f5 {[%emt 0:00:17]} 14. Ng5 {[%emt 0:00:26]} Nc5 {[%emt 0:00:37] Dodges Ne6} 15. N1h3 {[%emt 0:02:39]} f4 {[%emt 0:00:41]} 16. g4 {[%emt 0:00:47] [#]} e4 $1 {[%emt 0:00:16][%mdl 512]} 17. Be2 {[%emt 0:04:29]} (17. Nxe4 Nxe4) 17... exf3 {[%emt 0:01:06]} 18. Bxf3 {[%emt 0:01:48]} Nd3+ {[%emt 0:00:09]} 19. Kd2 {[%emt 0:00:39]} Ne5 {[%emt 0:00:22][%cal Oh6g5] aiming for ...Bxg5!} ({Don't play} 19... Nxb2 20. Rac1 $19) 20. Rhg1 $2 {[%emt 0:03:59]} (20. Rae1) 20... Bxg5 {[%emt 0:00:14] Black is clearly winning.} (20... Nxc4+ $2 21. Kc3 Ne5 22. Raf1 $17) 21. Nxg5 {[%emt 0:00:51]} h6 {[%emt 0:00:11]} 22. Be4 {[%emt 0:08:41]} hxg5 {[%emt 0:00:08]} 23. hxg5 {[%emt 0:00:17]} Bxg4 {[%emt 0:00:21][%cal Of4f3]} 24. Bxg6 {[%emt 0:01:52]} Nf3+ {[%emt 0:00:41] White did not feel at home in the position after the opening.   Weighted Error Value: White=1.41/Black=0.07 (flawless) .  Mistake:       	White=1     	---        OK:         	White=1     	Black=3      Best:        	---       	Black=2      Brilliant:      	---       	Black=1} 0-1

[Event "3rd Perez Open 2024"]
[Site "Santa Fe"]
[Date "2024.02.22"]
[Round "1.4"]
[White "Rodriguez Vila, Andres"]
[Black "Carnevale, Sofia"]
[Result "1-0"]
[ECO "A80"]
[WhiteElo "2407"]
[BlackElo "1591"]
[Annotator "TA"]
[PlyCount "47"]
[EventDate "2024.02.18"]
[EventType "swiss"]
[EventCountry "ARG"]
[SourceTitle "playchess.com"]
[Source "ChessBase"]
[SourceQuality "1"]
[TimeControl "5400+30"]

{[%evp 9,47,23,62,-1,0,-11,6,-25,-5,0,-10,-9,56,51,72,56,171,159,145,152,147,144,442,461,454,454,640,634,601,479,467,465,488,488,480,480,478,465,478,485]} 1. d4 {[%emt 0:00:04]} f5 {[%emt 0:02:26]} 2. Bg5 {[%emt 0:00:12]} g6 {[%emt 0:08:12]} 3. Nc3 {[%emt 0:00:45]} Bg7 {[%emt 0:01:59]} 4. e4 {[%emt 0:00:09]} fxe4 {[%emt 0:06:58]} 5. Nxe4 {[%emt 0:00:45]} Nf6 {[%emt 0:06:58]} 6. Bxf6 {[%emt 0:01:06]} (6. Nc3 $14) 6... exf6 $11 {[%emt 0:00:28]} 7. Qd2 {[%emt 0:00:41]} d5 {[%emt 0:01:30]} 8. Nc5 {[%emt 0:04:33][%cal Be4c5,Bc5d3,Bd3f4,Bf4e6][%mdl 32] The position is equal.} O-O {[%emt 0:02:17]} 9. O-O-O {[%emt 0:00:07] Active counter play!} b6 {[%emt 0:02:22]} 10. Nd3 {[%emt 0:00:06]} Be6 {[%emt 0:02:17]} (10... Nc6 $11) 11. h4 $14 {[%emt 0:00:34]} Qd6 {[%emt 0:03:21]} 12. h5 {[%emt 1:27:28]} c5 {[%emt 0:03:55]} (12... Nc6 $14) 13. hxg6 {[%emt 0:00:00]} hxg6 {[%emt 0:03:14]} 14. dxc5 {[%emt 0:00:00]} bxc5 {[%emt 0:00:36]} 15. Nf4 {[%emt 0:00:00][%cal Of4e6] Hoping for Nxe6!} Rd8 $2 {[%emt 0:03:42][%mdl 8192] [#] A mistake that costs the game.} (15... Bf7 $16) 16. Nxe6 $18 {[%emt 0:00:00] White is clearly winning.} ({Not} 16. Nxg6 Nc6 $16) 16... Qxe6 {[%emt 0:00:54]} 17. Bc4 {[%emt 0:00:00][%cal Bf1c4,Bc4d5,Bd5c6][%mdl 32]} Qe7 {[%emt 0:03:16]} (17... Kf8 $142 18. Bxd5 Qe7) 18. Bxd5+ {[%emt 0:00:00]} Kf8 {[%emt 0:00:24] Black is weak on the light squares} 19. Qe2 {[%emt 0:00:00]} Nc6 {[%emt 0:04:58]} 20. Qxe7+ {[%emt 0:00:00]} Kxe7 {[%emt 0:00:52]} 21. Bxc6 {[%emt 0:00:00]} Rxd1+ {[%emt 0:00:15]} 22. Kxd1 {[%emt 0:00:00]} Rd8+ {[%emt 0:00:39]} 23. Kc1 {[%emt 0:00:00]} f5 {[%emt 0:00:49]} 24. Ne2 {[%emt 0:00:00] Weighted Error Value: White=0.18 (very precise) /Black=0.66.  Loses game:     	---       	Black=1      Mistake:       	---       	Black=3      Inaccurate:     	White=1     	---        OK:         	White=8     	Black=4      Best:        	White=3     	Black=1} 1-0

[Event "3rd Perez Open 2024"]
[Site "Santa Fe"]
[Date "2024.02.23"]
[Round "1.5"]
[White "Serrano, Franco"]
[Black "Villca, Julian"]
[Result "0-1"]
[ECO "C22"]
[WhiteElo "1580"]
[BlackElo "2411"]
[Annotator "TA"]
[PlyCount "63"]
[EventDate "2024.02.18"]
[EventType "swiss"]
[EventCountry "ARG"]
[SourceTitle "playchess.com"]
[Source "ChessBase"]
[SourceQuality "1"]
[TimeControl "5400+30"]

{[%evp 9,63,0,-5,-51,-60,-117,-122,-143,-138,-119,-114,-178,-160,-168,-114,-125,-57,-62,-65,-70,-58,-66,-66,-83,-58,-62,-72,-92,-95,-100,-87,-135,-136,-147,-145,-140,-72,-87,-17,-324,-335,-508,-511,-452,-302,-483,-478,-495,-482,-559,-574,-1137,-579,-580,-565,-529]} 1. e4 {[%emt 0:00:08]} e5 {[%emt 0:00:07]} 2. d4 {[%emt 0:00:50]} exd4 {[%emt 0:00:10]} 3. Qxd4 {[%emt 0:00:06]} Nc6 {[%emt 0:00:05]} 4. Qe3 {[%emt 0:00:08]} g6 {[%emt 0:13:32]} 5. Bd2 {[%emt 0:05:22]} Bg7 {[%emt 0:02:45]} 6. Bc3 {[%emt 0:00:47]} (6. Nc3 $11) 6... Nf6 $15 {[%emt 0:00:12]} 7. Nd2 {[%emt 0:04:51]} (7. Bxf6 $15 Qxf6 8. Nc3) 7... O-O $17 {[%emt 0:00:24]} 8. f3 {[%emt 0:06:27] Black is better.} d5 {[%emt 0:00:51] aiming for ...d4.} 9. Ne2 {[%emt 0:00:30]} dxe4 {[%emt 0:03:27]} 10. O-O-O {[%emt 0:01:26]} (10. fxe4 $17 Qe7 (10... Ng4 11. Qg3 $17) 11. O-O-O) 10... Nd5 $1 $19 {[%emt 0:00:24]} 11. Qc5 {[%emt 0:03:06] Bxg7 would now be deadly.} Nxc3 {[%emt 0:00:34]} (11... Bh6 $19 {And now ...Nxc3 would win.} 12. fxe4 Ne3) 12. Nxc3 $17 {[%emt 0:00:53] [#]} Bd4 {[%emt 0:01:27]} ({Black should try} 12... exf3 $1 $17 13. Nxf3 Qf6) 13. Qa3 $1 $15 {[%emt 0:03:13]} exf3 $1 {[%emt 0:06:11]} 14. Nxf3 {[%emt 0:03:17] Black must now prevent Nb5.} Bg4 {[%emt 0:04:14]} 15. Be2 {[%emt 0:19:13]} Bxf3 {[%emt 0:00:26]} 16. Bxf3 {[%emt 0:00:57]} Qg5+ {[%emt 0:00:12]} 17. Kb1 {[%emt 0:00:16]} Rad8 {[%emt 0:00:13]} 18. Ne4 {[%emt 0:05:48]} Qe5 {[%emt 0:02:48]} 19. c3 {[%emt 0:02:27]} Bb6 {[%emt 0:00:08]} 20. Rde1 {[%emt 0:02:49]} (20. Qa4 $142) 20... Rfe8 $17 {[%emt 0:02:08]} 21. Qa4 {[%emt 0:04:32] [#] White is weak on the dark squares} Kg7 $1 {[%emt 0:01:16] Black is more active.} 22. h4 {[%emt 0:03:23]} h6 {[%emt 0:06:44]} (22... f5 $142 23. Ng5 Qxe1+ 24. Rxe1 Rxe1+ 25. Kc2 h6 26. Bxc6 hxg5 27. Bxb7 gxh4) 23. h5 {[%emt 0:09:58]} f5 {[%emt 0:00:30]} ({Black should play} 23... g5 $17 {...Qf4 is the strong threat.} 24. g4 Re6) 24. g4 $2 {[%emt 0:12:14][%mdl 8192] Loses the game.} fxe4 $19 {[%emt 0:00:24]} 25. g5 {[%emt 0:00:18]} (25. Qxe4 {was necessary.} Qxe4+ 26. Bxe4) 25... Qxg5 {[%emt 0:00:15]} 26. Bxe4 {[%emt 0:01:14]} Ne5 {[%emt 0:09:41]} 27. Re2 {[%emt 0:01:23]} (27. Bxg6 {might work better.} Rf8 (27... Nxg6 28. Rxe8 Rxe8 29. Qxe8 $11) 28. Be4) 27... Ng4 {[%emt 0:00:58] Black is clearly winning.} ({Don't take} 27... gxh5 28. Bxb7 Rf8 29. a3) 28. Rg2 {[%emt 0:04:00]} gxh5 {[%emt 0:00:29] Strongly threatening ...Qf4.} 29. Ka1 {[%emt 0:01:45]} Qf4 {[%emt 0:00:48]} 30. Bc2 {[%emt 0:03:06]} Qxa4 {[%emt 0:00:53]} 31. Bxa4 {[%emt 0:00:04]} c6 {[%emt 0:00:38]} 32. a3 {[%emt 0:00:20] Weighted Error Value: White=0.69/Black=0.39.  Loses game:     	White=1     	---        Mistake:       	White=5     	Black=4      Inaccurate:     	White=1     	Black=2      OK:         	White=5     	Black=13     Best:        	White=2     	Black=1      Strong:       	White=1     	Black=2} 0-1

[Event "3rd Perez Open 2024"]
[Site "Santa Fe"]
[Date "2024.02.23"]
[Round "1.6"]
[White "Spata, German"]
[Black "Fournel, Bautista"]
[Result "1-0"]
[ECO "D42"]
[WhiteElo "2399"]
[BlackElo "1571"]
[Annotator "TA"]
[PlyCount "61"]
[EventDate "2024.02.18"]
[EventType "swiss"]
[EventCountry "ARG"]
[SourceTitle "playchess.com"]
[Source "ChessBase"]
[SourceQuality "1"]
[TimeControl "5400+30"]

{[%evp 21,61,35,62,24,169,70,104,0,0,0,0,-1,0,0,0,-32,-52,-114,0,0,0,-5,0,0,95,-52,0,0,320,0,225,226,370,378,469,453,473,479,462,447,443,443]} 1. e4 {[%emt 0:00:27]} c6 {[%emt 0:00:18]} 2. d4 {[%emt 0:03:37]} d5 {[%emt 0:01:20]} 3. exd5 {[%emt 0:06:28]} cxd5 {[%emt 1:30:22]} 4. c4 {[%emt 0:00:07]} Nf6 {[%emt 0:00:00]} 5. Nc3 {[%emt 0:00:08]} e6 {[%emt 0:00:00]} 6. Nf3 {[%emt 0:00:21]} Nc6 {[%emt 0:00:00]} 7. cxd5 {[%emt 0:05:46]} Nxd5 {[%emt 0:00:00]} 8. Bd3 {[%emt 0:00:38]} Be7 {[%emt 0:00:00]} 9. O-O {[%emt 0:00:16]} O-O {[%emt 0:00:00]} 10. Re1 {[%emt 0:00:16]} Bf6 {[%emt 0:00:00]} 11. Be4 {[%emt 0:00:34]} Nde7 {[%emt 0:00:00]} 12. Be3 {[%emt 0:07:29]} b6 {[%emt 0:00:00] [#]} (12... Nb4 $11) 13. Ne5 {[%emt 0:09:29]} Bb7 {[%emt 0:00:00]} 14. Ng4 {[%emt 0:00:58] White is much more active.} (14. Qh5 $16 {[%csl Ge4][%cal Rh5h7]} g6 15. Qf3 Bxe5 16. dxe5 Nxe5 17. Qg3 Bxe4 18. Nxe4 (18. Qxe5 Bd5 $16)) 14... Bh4 $11 {[%emt 0:00:00] aiming for ...f5.} 15. d5 {[%emt 0:19:24]} exd5 {[%emt 0:00:00]} 16. Nxd5 {[%emt 0:00:34]} f5 {[%emt 0:00:00]} 17. Nxe7+ $1 {[%emt 0:00:54]} Qxe7 {[%emt 0:00:00]} 18. Bd5+ {[%emt 0:04:32]} Kh8 {[%emt 0:00:00]} 19. Bf4 {[%emt 0:00:56]} ({White should play} 19. g3 $15) 19... Qd7 {[%emt 0:00:00]} (19... Qb4 $17 20. Bxc6 Bxc6) 20. Ne3 {[%emt 0:02:56]} Bf6 {[%emt 0:00:00]} 21. Nc4 $132 {[%emt 0:17:53][%mdl 2048] White is not holding back} Rad8 {[%emt 0:00:00]} 22. Nd6 {[%emt 0:02:57] Nxb7 is the strong threat.} Bxb2 {[%emt 0:00:00] [#]} (22... g5 $11 23. Nxb7 Qxb7) 23. Nxb7 {[%emt 0:07:37]} Qxb7 {[%emt 0:00:00]} (23... Bxa1 $15 24. Nxd8 Rxd8) 24. Rb1 {[%emt 0:01:44]} Bc3 {[%emt 0:00:00][%mdl 8192]} (24... Qd7 $1 $11 {and Black has nothing to worry.}) 25. Re3 $2 {[%emt 0:00:53]} ({White must play} 25. Re6 $18) 25... Bb4 $2 {[%emt 0:00:00]} (25... Bd4 $11 {and Black is okay.} 26. Qxd4 Qd7) 26. Qf3 {[%emt 0:01:44]} Rc8 {[%emt 0:00:00]} (26... Bd2 $142 27. Bxc6 Qc8) 27. Re6 $18 {[%emt 0:00:18]} ({Worse is} 27. Bxc6 Qxc6 (27... Rxc6 $2 {is the wrong capture.} 28. Re6 $18) 28. Qxc6 Rxc6 $15) 27... Rf6 {[%emt 0:01:49]} 28. Rxf6 {[%emt 0:00:22] White is clearly winning.} gxf6 {[%emt 0:00:02]} 29. Rxb4 {[%emt 0:00:33] And now Rc4 would win.} Qe7 {[%emt 0:00:47]} 30. Rb1 {[%emt 0:01:30] Wards off Qe1+} (30. Bxc6 $2 Qe1#) 30... Nd4 {[%emt 0:00:35]} 31. Qe3 {[%emt 0:01:46] Weighted Error Value: White=0.51/Black=0.79.  Loses game:     	---       	Black=2      Missed win:     	White=1     	---        Mistake:       	White=4     	Black=5      Inaccurate:     	White=1     	Black=1      OK:         	White=7     	Black=5      Best:        	White=1     	Black=1      Strong:       	White=1     	---} 1-0

[Event "3rd Perez Open 2024"]
[Site "Santa Fe"]
[Date "2024.02.23"]
[Round "2.1"]
[White "Felgaer, Ruben"]
[Black "Angelini, Diego"]
[Result "1-0"]
[ECO "B90"]
[WhiteElo "2572"]
[BlackElo "2014"]
[Annotator "TA"]
[PlyCount "81"]
[EventDate "2024.02.18"]
[EventType "swiss"]
[EventCountry "ARG"]
[SourceTitle "playchess.com"]
[Source "ChessBase"]
[SourceQuality "1"]
[TimeControl "5400+30"]

{[%evp 12,81,20,9,37,13,30,31,27,27,20,30,32,17,29,26,27,27,64,0,25,0,5,0,38,33,32,28,17,15,40,19,43,55,95,103,182,172,177,163,168,175,174,183,289,266,255,277,316,302,371,331,346,287,511,524,525,501,622,551,655,351,682,669,783,779,761,738,790,808,756,743]} 1. e4 {[%emt 0:00:04]} c5 {[%emt 0:00:42]} 2. Nc3 {[%emt 0:00:15]} d6 {[%emt 0:00:44]} 3. Nge2 {[%emt 0:01:32]} Nf6 {[%emt 0:00:26]} 4. d4 {[%emt 0:02:11]} cxd4 {[%emt 0:00:07]} 5. Nxd4 {[%emt 0:00:07]} a6 {[%emt 0:00:09]} 6. a4 {[%emt 0:00:13]} g6 {[%emt 0:03:57]} 7. g3 {[%emt 0:01:04]} Bg4 {[%emt 0:04:11]} 8. Qd3 {[%emt 0:07:05]} Nbd7 {[%emt 0:07:14]} 9. h3 {[%emt 0:04:46]} Nc5 {[%emt 0:04:55] White is slightly better.} 10. Qe3 {[%emt 0:00:30]} Bd7 {[%emt 0:00:38]} 11. Bg2 {[%emt 0:02:58]} e5 {[%emt 0:10:20]} 12. Nde2 {[%emt 0:03:03]} Bg7 {[%emt 0:01:37]} 13. O-O {[%emt 0:00:07]} O-O {[%emt 0:00:07]} 14. Rd1 {[%emt 0:02:11]} Qe7 {[%emt 0:05:51]} 15. b4 {[%emt 0:05:43]} Ne6 {[%emt 0:00:14]} 16. Nd5 {[%emt 0:00:05]} Nxd5 {[%emt 0:01:51]} 17. exd5 {[%emt 0:00:07]} Nc7 {[%emt 0:03:31]} 18. c4 $36 {[%emt 0:02:11][%cal Bc2c4,Bc4c5][%mdl 2080] Black is under pressure.} Rfc8 {[%emt 0:00:31]} 19. a5 {[%emt 0:05:14]} Ne8 {[%emt 0:01:52]} 20. Qb3 {[%emt 0:00:16]} h5 {[%emt 0:08:23]} 21. Be3 {[%emt 0:06:32]} Kh7 {[%emt 0:02:16]} 22. Rac1 {[%emt 0:00:56]} Bh6 {[%emt 0:01:12] White stays focused until the end.} 23. c5 {[%emt 0:02:37] White is more active.} f5 {[%emt 0:07:54] [#]} (23... Rab8 $16 24. Re1 Bg7) 24. Bxh6 $1 $18 {[%emt 0:06:39]} Kxh6 {[%emt 0:00:07]} 25. Qe3+ {[%emt 0:00:05]} Kh7 {[%emt 0:08:26]} 26. Nd4 {[%emt 0:03:13][%cal Be2d4,Bd4f3,Bf3g5,Bg5e4][%mdl 32] Threatens to win with c6.} ({Much less strong is} 26. c6 bxc6 27. dxc6 Be6 $16) 26... Rc7 {[%emt 0:08:35]} 27. Nf3 {[%emt 0:08:34] And now cxd6 would win.} e4 {[%emt 0:02:59]} (27... Qf6 $142 28. Ng5+ (28. cxd6 Rxc1 29. Rxc1 e4 $16) 28... Kg7) 28. Ng5+ {[%emt 0:00:43]} Kg8 {[%emt 0:00:13]} 29. f3 {[%emt 0:02:41]} Rac8 {[%emt 0:05:40][%cal Rd6c5]} 30. fxe4 {[%emt 0:01:53]} fxe4 {[%emt 0:01:04]} 31. Nxe4 {[%emt 0:02:33]} Bf5 {[%emt 0:01:28]} 32. Re1 {[%emt 0:01:00]} Qd7 $2 {[%emt 0:06:29]} (32... Bxe4 {keeps fighting.} 33. Bxe4 (33. Qxe4 Qg5 $18) 33... Nf6) 33. Ng5 {[%emt 0:05:39]} Ng7 {[%emt 0:01:21]} 34. c6 {[%emt 0:01:00]} Qd8 {[%emt 0:00:11]} 35. Kh2 {[%emt 0:03:06]} Qf6 {[%emt 0:01:40]} 36. Qf4 {[%emt 0:02:50]} Qf8 $2 {[%emt 0:00:58]} (36... Rf8 37. Qd2 Kh8) 37. Rc3 {[%emt 0:04:30] White is clearly winning.} Re7 {[%emt 0:00:32]} 38. Rxe7 {[%emt 0:01:55]} Qxe7 {[%emt 0:00:01]} 39. cxb7 {[%emt 0:01:34]} Rb8 {[%emt 0:00:52] [#]} 40. b5 $1 {[%emt 0:02:39][%cal Bb4b5,Bb5b6][%mdl 32]} Rxb7 {[%emt 0:01:12]} 41. b6 {[%emt 0:10:39] Weighted Error Value: White=0.19 (very precise) /Black=0.50.  Mistake:       	---       	Black=4      Inaccurate:     	White=1     	Black=3      OK:         	White=19    	Black=8      Strong:       	White=1     	---} 1-0